Cogmind - Beta 13 @@@ ROGUE MODE // 2024.04.05 @ 21:14:36 Player: Olafz Result: Destroyed by Y-45 Defender with Heavy Assault Rifle Performance ------------- Evolutions (2) 1000 Regions Visited (6) 1200 Robots Destroyed (8) 40 Value Destroyed (227) 227 Prototype IDs (25) 500 Alien Tech Used (0) 0 Bonus (300) 300 TOTAL SCORE: 3267 Bonus ------- Aligned with FarCom 300 Cogmind --------- Core Integrity 0/550 Matter 183/300 Energy 3/100 System Corruption 1% Temperature Cool (0) Movement Core (200) Ox3 Location -8/Storage Parts ------- > --- POWER (1) -------- (None) > --- PROPULSION (2) --- (None) > --- UTILITY (6) ------ Small Storage Unit Improved Sensor Array Actuator Array > --- WEAPON (2) ------- (None) > --- INVENTORY (8) ---- Light Ion Engine Heavy Ion Engine Cooled Ion Engine Light Treads Light Treads Light Treads Peak State ------------ > --- POWER ------------ Light Nuclear Core > --- PROPULSION ------- Airjet Airjet > --- UTILITY ---------- Small Storage Unit Weight Redist. System Sensor Array Skeleton Box > --- WEAPON ----------- EM Pulse Gun > --- INVENTORY -------- Light Ion Engine Light Ion Engine Light Treads Light Treads Blade Saw Blade Saw [Rating: 21] Favorites ----------- Power Light Ion Engine Engine Light Ion Engine Power Core Light Nuclear Core Propulsion Light Treads Treads Light Treads Hover Unit Airjet Utility Small Storage Unit Device Skeleton Box Storage Small Storage Unit Weapon EM Pulse Gun Energy Gun EM Pulse Gun Launcher Grenade Launcher Slashing Weapon Blade Saw Build | -11 -10 -10 -10 -9 -8 -8 ------- Run | Yrd Mat Min Exi Min Mat Sto Slots Evolved 4 | . . . . . 4 . Power . | . . . . . . . Propulsion . | . . . . . . . Utility 4 | . . . . . 4 . Weapon . | . . . . . . . Parts Attached 26 | 5 1 . 1 4 6 9 Power 8 | 1 . . . 1 2 4 Engine 7 | 1 . . . 1 1 4 Core 1 | . . . . . 1 . Reactor . | . . . . . . . Propulsion 8 | 2 . . . 2 2 2 Treads 6 | 2 . . . 2 . 2 Leg . | . . . . . . . Wheel . | . . . . . . . Hover 2 | . . . . . 2 . Flight . | . . . . . . . Utility 7 | 1 . . 1 1 2 2 Device 5 | . . . 1 . 2 2 Storage 2 | 1 . . . 1 . . Processor . | . . . . . . . Hackware . | . . . . . . . Protection . | . . . . . . . Artifact . | . . . . . . . Weapon 3 | 1 1 . . . . 1 Energy Gun 1 | 1 . . . . . . Energy Cannon . | . . . . . . . Ballistic Gun . | . . . . . . . Ballistic Cannon . | . . . . . . . Launcher 1 | . 1 . . . . . Special Weapon . | . . . . . . . Impact Weapon . | . . . . . . . Slashing Weapon 1 | . . . . . . 1 Piercing Weapon . | . . . . . . . Special Melee Weapon . | . . . . . . . Unidentified Prototypes 2 | . . . . . . 2 Parts Lost 12 | . . . . . 4 8 Power 3 | . . . . . 1 2 Propulsion 3 | . . . . . 1 2 Utility 3 | . . . . . . 3 Weapon 3 | . . . . . 2 1 Highest Loss Streak 5 | . . . . . 4 5 To Critical Strikes . | . . . . . . . Average Slot Usage (%) 66 | . 83 42 36 100 79 45 Engine 7 | . 14 3 . 14 7 5 Treads 13 | . 28 7 . 28 11 2 Hover 1 | . . . . . 6 4 Device 12 | . . . 8 14 27 21 Storage 8 | . 14 3 . 14 9 9 Energy Gun 11 | . 14 14 14 14 9 . Launcher 10 | . 12 14 14 14 7 . Naked Turns . | . . . . . . . Heaviest Build 19 | 10 13 13 7 15 16 19 Greatest Support 46 | 40 40 40 3 40 46 26 Greatest Overweight (x) 6 | . . 1 2 . . 6 Average Overweight (x) . | . . . 1 . . . Largest Inventory Capacity 8 | 8 8 8 5 8 8 8 Average Capacity 7 | 7 8 5 5 7 8 8 Most Carried 7 | 1 1 5 5 4 6 7 Average Carried 3 | . 1 3 5 1 2 5 Final Capacity 8 | 8 8 5 5 8 8 8 Final Carried 6 | 1 1 5 5 3 6 6 Class Distribution -------------------- 83% | Mutant 9% | Scout 6% | Skirmisher Dominant Class ---------------- Mutant | -10/Materials Mutant | -10/Mines Mutant | -10/Exiles Mutant | -9/Mines Skirmisher | -8/Materials Mutant | -8/Storage Resources | -11 -10 -10 -10 -9 -8 -8 ----------- Run | Yrd Mat Min Exi Min Mat Sto Matter Collected 370 | 178 . . . 121 11 60 Remotely . | . . . . . . . Salvage Created 285 | . 91 . . 134 . 60 Parts 18 | . 7 . . 6 . 5 Haulers Intercepted . | . . . . . . . Recyclers Shooed . | . . . . . . . Parts Field Recycled . | . . . . . . . Retrieved Matter . | . . . . . . . Parts Self-Destructed . | . . . . . . . Prevented . | . . . . . . . Kills | -11 -10 -10 -10 -9 -8 -8 ------- Run | Yrd Mat Min Exi Min Mat Sto Combat Hostiles Destroyed 5 | . 2 . . 2 . 1 Melee 1 | . . . . . . 1 Guns 1 | . 1 . . . . . AOE 3 | . 1 . . 2 . . Classes Destroyed 5 | . 2 . . 2 . 1 Worker 1 | . . . . 1 . . Recycler 1 | . . . . 1 . . Operator 1 | . 1 . . . . . Grunt 4 | . 2 . . 2 . . Sentry 1 | . . . . . . 1 Best Kill Streak 4 | . 1 . . 4 . 1 Combat Bots Only 2 | . 1 . . 2 . 1 Max Kills in Single Turn 2 | . 1 . . 2 . 1 Gunslinging . | . . . . . . . Exploded 1 | . 1 . . 1 . . Melee 1 | . . . . . . 1 Uniques/NPCs Destroyed . | . . . . . . . Combat | -11 -10 -10 -10 -9 -8 -8 -------- Run | Yrd Mat Min Exi Min Mat Sto Hostile Shots Fired 123 | . 6 . . 8 15 94 Missed 36 | . 3 . . 2 6 25 Damage Taken 1427 | . 84 . . 84 236 1023 Core 569 | . . . . 18 53 498 Absorbed by Shields . | . . . . . . . Core Remaining (%) 96 | 100 . . . 92 . . Volleys Fired 28 | 4 11 . . 11 2 . Largest 2 | 1 2 . . 2 2 . Hottest 70 | 40 70 . . 70 70 . Shots Fired 38 | 4 15 . . 16 3 . Gun 28 | 4 11 . . 11 2 . Cannon . | . . . . . . . Launcher 10 | . 4 . . 5 1 . Special . | . . . . . . . Kinetic . | . . . . . . . Thermal . | . . . . . . . Explosive 10 | . 4 . . 5 1 . Electromagnetic 28 | 4 11 . . 11 2 . Robot Hit Streak 7 | 2 2 . . 7 1 . Robot Miss Streak 5 | 1 5 . . 3 3 . Penetration Max . | . . . . . . . Secondary Targets . | . . . . . . . Shots Hit Robots 22 | 2 6 . . 10 1 3 Core Hits 14 | . 4 . . 7 . 3 Critical Kills . | . . . . . . . Critical Parts Destroyed . | . . . . . . . Critical Strikes . | . . . . . . . Melee Attacks 6 | . . . . . . 6 Impact . | . . . . . . . Slashing 6 | . . . . . . 6 Piercing . | . . . . . . . Sneak Attacks . | . . . . . . . Combat Hostiles . | . . . . . . . Follow-up Attacks . | . . . . . . . Damage Inflicted 513 | 24 114 . . 312 11 52 Guns 209 | 24 77 . . 97 11 . Cannons . | . . . . . . . Explosions 236 | . 32 . . 204 . . Melee 50 | . . . . . . 50 Ramming 18 | . 5 . . 11 . 2 Kinetic . | . . . . . . . Thermal 56 | . . . . 56 . . Explosive 180 | . 32 . . 148 . . Electromagnetic 209 | 24 77 . . 97 11 . Impact . | . . . . . . . Slashing 50 | . . . . . . 50 Piercing . | . . . . . . . Highest Corruption 1 | . . . . . 1 1 Average Corruption 1 | . . . . . 1 1 Corruption Purged . | . . . . . . . Corruption Blocked . | . . . . . . . Effects 1 | . . . . . . 1 Message Errors 1 | . . . . . . 1 Overload Shots . | . . . . . . . Overflow Damage . | . . . . . . . Projectiles . | . . . . . . . Explosions . | . . . . . . . Melee . | . . . . . . . Knockbacks . | . . . . . . . Impact . | . . . . . . . Kinetic . | . . . . . . . Secondary . | . . . . . . . Self-Inflicted Damage 40 | . 39 . . . . 1 Shots 1 | . 1 . . . . . Rammed 4 | . 1 . . 1 . 2 Targets Rammed 4 | . 1 . . 1 . 2 Kicked . | . . . . . . . Crushed . | . . . . . . . Highest Temperature 54 | . 18 . . 54 7 3 Average Temperature 21 | . 7 . . 29 4 3 Received Heat Transfer 483 | . 18 . . 51 36 378 Siege Activations . | . . . . . . . Robots Corrupted . | . . . . . . . Combat Hostiles . | . . . . . . . Parts Fried . | . . . . . . . Impact Corruptions . | . . . . . . . Robots Melted . | . . . . . . . Combat Hostiles . | . . . . . . . Parts Melted . | . . . . . . . Heat Transferred 100 | . . . . 100 . . Parts Sabotaged . | . . . . . . . Parts Stolen . | . . . . . . . Parts Stripped . | . . . . . . . Power Chain Reactions 1 | . . . . 1 . . Alert | -11 -10 -10 -10 -9 -8 -8 ------- Run | Yrd Mat Min Exi Min Mat Sto Peak Influence 120 | . 120 46 . 101 55 35 Initial 46 | . . 46 . . . 10 Average 37 | . 47 46 . 69 5 11 Maximum Alert Level . | . . . . . . . Low Security (%) 100 | 100 100 100 . 100 100 100 Level 1 . | . . . . . . . Level 2 . | . . . . . . . Level 3 . | . . . . . . . Level 4 . | . . . . . . . Level 5 . | . . . . . . . High Security . | . . . . . . . Max Security . | . . . . . . . Squads Dispatched 4 | . 3 . . . 1 . Investigation 1 | . 1 . . . . . Extermination . | . . . . . . . Reinforcement 3 | . 2 . . . 1 . Assault . | . . . . . . . Garrison . | . . . . . . . Intercept . | . . . . . . . Searches Triggered . | . . . . . . . Construction Impeded . | . . . . . . . Haulers Reinforced . | . . . . . . . Active Scanning Responses . | . . . . . . . Cargo Convoy Interrupts . | . . . . . . . Stealth | -11 -10 -10 -10 -9 -8 -8 --------- Run | Yrd Mat Min Exi Min Mat Sto Distress Signals . | . . . . . . . Communications Jammed . | . . . . . . . Distress Signals . | . . . . . . . Times Spotted 16 | . 4 . . 2 6 4 Peak Tracking Total 4 | . 2 . . 2 4 3 Tactical Retreats 1 | . . . . . 1 . Traps | -11 -10 -10 -10 -9 -8 -8 ------- Run | Yrd Mat Min Exi Min Mat Sto Traps Triggered . | . . . . . . . Indirectly . | . . . . . . . Trap Hack Attempts . | . . . . . . . Triggered . | . . . . . . . Disarmed . | . . . . . . . Reprogrammed . | . . . . . . . Reused . | . . . . . . . Traps Extracted . | . . . . . . . Installed . | . . . . . . . Triggered . | . . . . . . . Machines | -11 -10 -10 -10 -9 -8 -8 ---------- Run | Yrd Mat Min Exi Min Mat Sto Machines Disabled 1 | . 1 . . . . . Max in Single Turn 1 | . 1 . . . . . Machines Repaired . | . . . . . . . Machines Dismantled . | . . . . . . . Machines Sabotaged . | . . . . . . . Overloaded Fab Kills . | . . . . . . . Hacking | -11 -10 -10 -10 -9 -8 -8 --------- Run | Yrd Mat Min Exi Min Mat Sto Machines Accessed 3 | . . . 1 . 1 1 Terminals 2 | . . . . . 1 1 Fabricators . | . . . . . . . Repair Stations . | . . . . . . . Recycling Units . | . . . . . . . Scanalyzers . | . . . . . . . Garrison Access . | . . . . . . . Total Hacks 7 | . . . 1 . 4 2 Successful 3 | . . . 1 . 2 . Failed 3 | . . . . . 1 2 Catastrophic 1 | . . . . . . 1 Database Lockouts 1 | . . . . . 1 . Manual 11 | . . . 1 . 10 . Terminals 6 | . . . . . 4 2 Fabricators . | . . . . . . . Repair Stations . | . . . . . . . Recycling Units . | . . . . . . . Scanalyzers . | . . . . . . . Garrison Access . | . . . . . . . Terminal Hacks 3 | . . . 1 . 2 . Record 2 | . . . . . 2 . Derelict Proto ID Bank 1 | . . . 1 . . . Fabricator Hacks . | . . . . . . . Repair Station Hacks . | . . . . . . . Recycling Unit Hacks . | . . . . . . . Scanalyzer . | . . . . . . . Garrison Access Hacks . | . . . . . . . Unauthorized Hacks . | . . . . . . . Terminals . | . . . . . . . Fabricators . | . . . . . . . Repair Stations . | . . . . . . . Recycling Units . | . . . . . . . Scanalyzers . | . . . . . . . Garrison Access . | . . . . . . . Data Cores Recovered . | . . . . . . . Used . | . . . . . . . Hacking Detections 1 | . . . . . . 1 Full Trace Events . | . . . . . . . Feedback Events . | . . . . . . . Feedback Blocked . | . . . . . . . Robot Schematics Acquired . | . . . . . . . Robots Built . | . . . . . . . Authchips . | . . . . . . . Time . | . . . . . . . Total Robot Build Rating . | . . . . . . . Part Schematics Acquired . | . . . . . . . Parts Built . | . . . . . . . Authchips . | . . . . . . . Time . | . . . . . . . Total Part Build Rating . | . . . . . . . Parts Repaired . | . . . . . . . Time . | . . . . . . . Parts Recycled . | . . . . . . . Recycled Matter . | . . . . . . . Retrieved Matter . | . . . . . . . Retrieved Components . | . . . . . . . Parts Scanalyzed . | . . . . . . . Part Schematics Acquired . | . . . . . . . Parts Damaged . | . . . . . . . Bothacking | -11 -10 -10 -10 -9 -8 -8 ------------ Run | Yrd Mat Min Exi Min Mat Sto Used RIF Installer . | . . . . . . . Robots Hacked . | . . . . . . . Non-combat . | . . . . . . . Combat . | . . . . . . . Robot Hacks Applied . | . . . . . . . Relay Couplers Released . | . . . . . . . Fabnet Peak Effective % . | . . . . . . . Robots Rewired . | . . . . . . . Allies Hacked . | . . . . . . . Hacks Repelled . | . . . . . . . Allies | -11 -10 -10 -10 -9 -8 -8 -------- Run | Yrd Mat Min Exi Min Mat Sto Total Allies . | . . . . . . . Largest Group . | . . . . . . . Highest-Rated Group . | . . . . . . . Highest-Rated Ally . | . . . . . . . Total Orders . | . . . . . . . Ally Attacks . | . . . . . . . Total Damage . | . . . . . . . Kills . | . . . . . . . Allies Corrupted . | . . . . . . . Allies Melted . | . . . . . . . Intel | -11 -10 -10 -10 -9 -8 -8 ------- Run | Yrd Mat Min Exi Min Mat Sto Robot Analysis Total . | . . . . . . . Derelict Logs Recovered . | . . . . . . . Drone Launches . | . . . . . . . Drone Recoveries . | . . . . . . . Exploration | -11 -10 -10 -10 -9 -8 -8 ------------- Run | Yrd Mat Min Exi Min Mat Sto Turns Passed 1555 | 126 156 82 388 413 164 226 Spaces Moved 1052 | 71 79 71 307 236 138 150 Core 403 | 3 . 60 307 . . 33 Treads 488 | 68 79 11 . 236 61 33 Legs . | . . . . . . . Wheels . | . . . . . . . Hover 161 | . . . . . 77 84 Flight . | . . . . . . . Fastest Speed 50 | 50 160 100 100 160 56 60 Average Speed 132 | 155 160 109 126 160 102 115 Slowest Speed 350 | 160 160 160 150 160 160 350 Overloaded Moves . | . . . . . . . Propulsion Burnouts . | . . . . . . . Robots Hopped . | . . . . . . . Cave-ins Triggered . | . . . . . . . Exploration Rate (%) 29 | 4 16 29 67 44 14 31 Regions Visited 6 Branch Regions 4 Pre-discovered Areas . | . . . . . . . Known Exits Taken . | . . . . . . . Unknown Exits Taken 6 | 1 1 1 1 1 1 . Scrap Searched 2 | . . . . 2 . . Spaces Dug . | . . . . . . . Terrain Destroyed 64 | . 26 . . 31 7 . Melee . | . . . . . . . Projectile . | . . . . . . . AOE 64 | . 26 . . 31 7 . Terrain Rammed . | . . . . . . . Walls Destroyed . | . . . . . . . Machines Disabled . | . . . . . . . Actions | -11 -10 -10 -10 -9 -8 -8 --------- Run | Yrd Mat Min Exi Min Mat Sto Total 1157 | 80 93 77 307 255 157 188 Wait 31 | . 2 3 . 2 6 18 Move 1046 | 70 78 70 306 235 137 150 Hop . | . . . . . . . Pick Up 7 | 1 . . . 2 4 . Fast Attach 13 | 5 1 . 1 . . 6 Attach 10 | . . . . 4 4 2 Detach 8 | . . 4 . . 2 2 Swap 3 | . . . . . 2 1 Drop 1 | . . . . . . 1 Fire 28 | 4 11 . . 11 2 . Melee 6 | . . . . . . 6 Ram 2 | . . . . . . 2 Kick . | . . . . . . . Crush 2 | . 1 . . 1 . . Escape Stasis . | . . . . . . . Rewire . | . . . . . . . Trap . | . . . . . . . Miscellaneous . | . . . . . . . Route ------- -11/Scrapyard -10/Materials -10/Mines -10/Exiles -9/Mines -8/Materials -8/Storage History --------- Turn | Location | Event 20 | -11/Scrapyard | Discovered new exit (range 16) 127 | -11/Scrapyard | Entered Materials 258 | -10/Materials | Discovered new exit (range 7) 268 | -10/Materials | Met 8R-AWN 283 | -10/Materials | Entered Mines 285 | -10/Mines | Followed 8R-AWN into the Mines 327 | -10/Mines | Build established: Mutant 359 | -10/Mines | Discovered new exit (range 5) 365 | -10/Mines | Entered Exiles 389 | -10/Exiles | Welcomed by 8R-AWN 406 | -10/Exiles | Met EX-HEX 443 | -10/Exiles | Met EX-BIN 462 | -10/Exiles | Aligned with FarCom system 463 | -10/Exiles | Given EX-Vault access code 493 | -10/Exiles | Opened EX-Vault 510 | -10/Exiles | Found Skeleton Box 545 | -10/Exiles | Warned to stay clear of 0b10 Research branches 590 | -10/Exiles | Met EX-DEC 732 | -10/Exiles | Discovered new exit (range 11) 753 | -10/Exiles | Left Exiles lab with Skeleton Box 753 | -10/Exiles | Entered Mines 757 | -9/Mines | Met a Derelict bent on vengeance 1132 | -9/Mines | Discovered new exit (range 7) 1166 | -9/Mines | Entered Materials 1166 | -8/Materials | Evolved 4 slots: Utility x4 1178 | -8/Materials | Central database locked down 1310 | -8/Materials | Discovered new exit (range 15) 1330 | -8/Materials | Entered Storage 1345 | -8/Storage | Remotely autohacked Sealed Heavy Doors 1361 | -8/Storage | Lost 4 parts (1p1n2w) 1372 | -8/Storage | Remotely autohacked Sealed Heavy Doors 1465 | -8/Storage | Lost 5 parts (1p1n2u1w) 1488 | -8/Storage | Core integrity fell below 50% 1521 | -8/Storage | Lost 3 parts (1p1n1u) 1546 | -8/Storage | Core integrity fell below 20% 1556 | -8/Storage | Destroyed by Y-45 Defender with Heavy Assault Rifle Last Messages --------------- 01374_ MR>T7&7RRP4N P66DSFESDC,WJA# 01416_ Skeleton Box destroyed. 01417_ Y-45 Defender destroyed. 01421_ Acquired 60 matter. 01422_ Acquired Imp. Ion Engine. 01426_ Acquired Lgt. Treads. 01429_ Weight Redist. System destroyed. 01434_ Blade Saw destroyed. 01434_ Critical hit (Burn: +37). 01434_ Airjet destroyed. 01443_ Acquired Actuator Array. 01471_ Acquired Imp. Sensor Array. 01484_ Lgt. Treads destroyed. 01490_ Imp. Ion Engine destroyed. 01490_ Sensor Array destroyed. 01498_ Connecting with Terminal... 01498_ Current location identified: Storage 01508_ Slammed into A-02 Transporter. Map ----- +----------------------------------------------------+ | ???????????????????????????????????????????? | | ???????????????????????????????????????????? | | ???????????????????????????????????????????? | | ???????????????????????????????????????????? | | ???????????????????????????????????????????? | | ???????????????????????????????????????????? | | ???????????????????????????????????????????? | | ???????????????????????????????????????????? | | ????????????????????????????Y??????????????? | | ???????????????????????????????????????????? | | ???????????????????????????????????????????? | | ???????????????????????????????????????????? | | ???????????????????????????????????????????? | | ???????????????????????????????????????????? | | ?????????????????????????????"?????????????? | | ?????????????????????????????"?????????????? | | ????????????????????????????? ?????????????? | | ???????????????????????????? "?????????????? | | ???????????????????????????? ??????????????? | | ???????????????????????????? ??????????????? | | ??????????????????##????Y??? ??????????????? | | ??????????????? ?????#/#???####???????? | | ""???????????????? ????# #???"""#???????? | | ""?????????????????? ???# #???"R"#???????? | | ""??????????????????? #### #?##" "######??? | | ???????????????????? + @ #?# #??? | | ??#######????????????# #?# #??? | | +#### #####+######## ### |! #??? | | ! # !!Y #?? | | + "" #??? | | ! # T" #??? | | +#### ########" "##### # "" #??? | | ############?#"G"#???# # #??? | | """ #??????#"""#?#"??????# Y ####" "####??? | | """ #??????#"T"#?????????#Y T#??"Y"#?????? | | """ ########" "########### ##???""#?????? | | """ + #????#?#?????? | | """ #############+########+##+#????????????? | | #??????# #?? ??????????????? | | #??????# # !????????????? | | #??????# # * #???????????? | | ## ##??????# # !! #???????????? | | ??##???????#####################???????????? | | | | | | | | | | | | | | | +----------------------------------------------------+ Best States ------------- Heat Dissipation 31 Energy Generation 14 Energy Capacity 280 Matter Stores 228 Matter Capacity 300 Sight Range 16 Robot Scan Range 15 Terrain Scan Density 10 Additional Mass Support 6 Evasion (%) 53 Recoil Reduction 2 Item Schematics ----------------- None Robot Schematics ------------------ None Fabricated ------------ Nothing Alien Tech Used ----------------- None Achievements -------------- None Challenges ------------ None Game ------ Seed TachyonNeutrinoVibroblade Manual? 0 Play Time 00:15:30 Cumulative 24.0 hours Start 2024.04.05 @ 19:58:51 End 2024.04.05 @ 21:14:36 Sessions 1 Manual Loads 0 Difficulty Rogue Special Mode None Game No. 66 Rogue 64 Adventurer 2 Explorer 0 Win Type - Total 0 Types 0/0/0/0/0/0/0/0/0 Lore% 20 Gallery% 25 Achievement% 23 Wizard Run 0 Options --------- Layout 1 ASCII 0 Keyboard 1 Movement Arrows Keybinds 0 Fullscreen 2 Font 24/Smallcaps Map View 50x35 Zoom Use 0% Tactical HUD 1 Map Filters NONE Filters NONE Steam 1 RUN: 8d66a35f-8179-4c12-8ba4-1cf9d5cb7629